fUSD/lending_fUSD_20260610
["ID","MTS","AMOUNT","RATE_DAILY","PERIOD"]
[424643341,1781026263000,-500.0,0.00029863,60]
[424643352,1781026263000,-1674.0,0.00029863,60]
[424643421,1781026264000,-150.0,0.00029863,2]
[424643431,1781026264000,-1692.0,0.00029863,60]
[424643423,1781026264000,-1674.0,0.00029863,60]
[424643429,1781026264000,-1674.0,0.00029863,60]
[424643416,1781026264000,-150.0,0.00029863,60]
[424643413,1781026264000,-422.0,0.00029863,60]
[424643411,1781026264000,-1674.0,0.00029863,60]
[424643414,1781026264000,-500.0,0.00029863,2]
[424643419,1781026264000,-422.0,0.00029863,60]
[424643420,1781026264000,-228.16060233,0.00029863,60]
[424643418,1781026264000,-150.0,0.00029863,60]
[424643440,1781026264000,-1192.0,0.00029863,60]
[424643422,1781026264000,-318.26884413,0.00029863,2]
[424643427,1781026264000,-1674.0,0.00029863,60]
[424643428,1781026264000,-422.0,0.00029863,60]
[424643424,1781026264000,-422.0,0.00029863,60]
[424643425,1781026264000,-150.0,0.00029863,2]
[424643426,1781026264000,-422.0,0.00029863,60]
[424643432,1781026264000,-439.39783336,0.00029863,60]
[424643434,1781026264000,-150.0,0.00029863,60]
[424643436,1781026264000,-178.1995324,0.00029863,60]
[424643435,1781026264000,-150.0,0.00029863,60]
[424643443,1781026264000,-1192.0,0.00029863,60]
[424643444,1781026264000,-900.0,0.00029863,60]
[424643407,1781026264000,-422.0,0.00029863,60]
[424643430,1781026264000,-422.0,0.00029863,60]
[424643415,1781026264000,-150.0,0.00029863,60]
[424643398,1781026264000,-500.0,0.00029863,2]
[424643412,1781026264000,-621.98619995,0.00029863,60]
[424643437,1781026264000,-1192.0,0.00029863,60]
[424643391,1781026264000,-500.0,0.00029863,60]
[424643392,1781026264000,-422.0,0.00029863,60]
[424643383,1781026264000,-500.0,0.00029863,2]
[424643384,1781026264000,-422.0,0.00029863,60]
[424643390,1781026264000,-1674.0,0.00029863,60]
[424643388,1781026264000,-422.0,0.00029863,60]
[424643386,1781026264000,-500.0,0.00029863,2]
[424643387,1781026264000,-500.0,0.00029863,60]
[424643385,1781026264000,-500.0,0.00029863,60]
[424643389,1781026264000,-500.0,0.00029863,2]
[424643394,1781026264000,-500.0,0.00029863,60]
[424643405,1781026264000,-500.0,0.00029863,2]
[424643393,1781026264000,-500.0,0.00029863,2]
[424643404,1781026264000,-500.0,0.00029863,60]
[424643395,1781026264000,-422.0,0.00029863,60]
[424643397,1781026264000,-422.0,0.00029863,60]
[424643396,1781026264000,-500.0,0.00029863,60]
[424643399,1781026264000,-500.0,0.00029863,60]
[424643400,1781026264000,-422.0,0.00029863,60]
[424643401,1781026264000,-500.0,0.00029863,60]
[424643402,1781026264000,-1674.0,0.00029863,60]
[424643403,1781026264000,-422.0,0.00029863,60]
[424643406,1781026264000,-422.0,0.00029863,60]
[424643410,1781026264000,-500.0,0.00029863,2]
[424643409,1781026264000,-422.0,0.00029863,60]
[424643417,1781026264000,-1674.0,0.00029863,60]
[424643408,1781026264000,-500.0,0.00029863,60]
[424643441,1781026264000,-900.0,0.00029863,60]
[424643459,1781026264000,-900.0,0.00029863,60]
[424643439,1781026264000,-900.0,0.00029863,60]
[424643476,1781026264000,-1828.0,0.00029863,60]
[424643475,1781026264000,-1828.0,0.00029863,60]
[424643477,1781026264000,-1828.0,0.00029863,60]
[424643480,1781026264000,-1192.0,0.00029863,60]
[424643478,1781026264000,-900.0,0.00029863,60]
[424643484,1781026264000,-1192.0,0.00029863,60]
[424643482,1781026264000,-1192.0,0.00029863,60]
[424643479,1781026264000,-1828.0,0.00029863,60]
[424643483,1781026264000,-1828.0,0.00029863,60]
[424643433,1781026264000,-150.0,0.00029863,60]
[424643485,1781026264000,-1828.0,0.00029863,60]
[424643488,1781026264000,-1828.0,0.00029863,60]
[424643473,1781026264000,-1828.0,0.00029863,60]
[424643486,1781026264000,-1828.0,0.00029863,60]
[424643490,1781026264000,-1192.0,0.00029863,60]
[424643491,1781026264000,-1192.0,0.00029863,60]
[424643489,1781026264000,-1192.0,0.00029863,60]
[424643497,1781026264000,-1828.0,0.00029863,60]
[424643493,1781026264000,-1828.0,0.00029863,60]
[424643492,1781026264000,-900.0,0.00029863,60]
[424643496,1781026264000,-1192.0,0.00029863,60]
[424643494,1781026264000,-1192.0,0.00029863,60]
[424643500,1781026264000,-151.0,0.00029899,7]
[424643498,1781026264000,-442.0,0.00029863,2]
[424643499,1781026264000,-1000.0,0.00029871,7]
[424643495,1781026264000,-1192.0,0.00029863,60]
[424643487,1781026264000,-1192.0,0.00029863,60]
[424643474,1781026264000,-1828.0,0.00029863,60]
[424643481,1781026264000,-1828.0,0.00029863,60]
[424643471,1781026264000,-900.0,0.00029863,60]
[424643442,1781026264000,-900.0,0.00029863,60]
[424643472,1781026264000,-1828.0,0.00029863,60]
[424643446,1781026264000,-250.0,0.00029863,2]
[424643445,1781026264000,-1192.0,0.00029863,60]
[424643447,1781026264000,-900.0,0.00029863,60]
[424643451,1781026264000,-250.0,0.00029863,2]
[424643448,1781026264000,-1192.0,0.00029863,60]
[424643454,1781026264000,-900.0,0.00029863,60]
[424643453,1781026264000,-266.07643987,0.00029863,2]
[424643450,1781026264000,-900.0,0.00029863,60]
[424643449,1781026264000,-250.0,0.00029863,2]
[424643452,1781026264000,-900.0,0.00029863,60]
[424643455,1781026264000,-900.0,0.00029863,60]
[424643438,1781026264000,-1192.0,0.00029863,60]
[424643457,1781026264000,-900.0,0.00029863,60]
[424643458,1781026264000,-500.0,0.00029863,30]
[424643466,1781026264000,-900.0,0.00029863,60]
[424643460,1781026264000,-500.0,0.00029863,30]
[424643465,1781026264000,-900.0,0.00029863,60]
[424643462,1781026264000,-900.0,0.00029863,60]
[424643464,1781026264000,-900.0,0.00029863,60]
[424643461,1781026264000,-900.0,0.00029863,60]
[424643463,1781026264000,-495.31997841,0.00029863,30]
[424643468,1781026264000,-1828.0,0.00029863,60]
[424643469,1781026264000,-1828.0,0.00029863,60]
[424643470,1781026264000,-1828.0,0.00029863,60]
[424643467,1781026264000,-1828.0,0.00029863,60]
[424643456,1781026264000,-900.0,0.00029863,60]
[424643503,1781026265000,-186.921122,0.00029899,7]
[424643501,1781026265000,-151.0,0.00029899,7]
[424643505,1781026265000,-186.921122,0.00029899,7]
[424643504,1781026265000,-186.921122,0.00029899,7]
[424643506,1781026265000,-29888.2436447,0.000299,2]
[424643502,1781026265000,-186.921122,0.00029899,7]
[424643518,1781026266000,-390.93304004,0.00017768,2]
[424643525,1781026266000,-500.0,0.00023,2]
[424643523,1781026266000,-500.0,0.00023,2]
[424643521,1781026266000,-230.19331192,0.00021199,2]
[424643524,1781026266000,-500.0,0.00023,2]
[424643520,1781026266000,-386.38925708,0.00021199,2]
[424643517,1781026266000,-500.0,0.00017768,2]
[424643516,1781026266000,-500.0,0.00017768,2]
[424643507,1781026266000,-1905.92200883,0.000299,2]
[424643519,1781026266000,-109.06695996,0.00017768,2]
[424643512,1781026266000,-151.0,0.00016438,2]
[424643514,1781026266000,-151.0,0.00016438,2]
[424643513,1781026266000,-151.0,0.00016438,2]
[424643511,1781026266000,-151.0,0.00016438,2]
[424643510,1781026266000,-10525.88655349,0.000299,2]
[424643508,1781026266000,-1192.0,0.00029863,60]
[424643509,1781026266000,-387.95129575,0.000299,2]
[424643515,1781026266000,-500.0,0.00017768,2]
[424643529,1781026266000,-1530.699804,0.00026384,2]
[424643530,1781026266000,-1530.699804,0.00026384,2]
[424643522,1781026266000,-500.0,0.00023,2]
[424643545,1781026266000,-452.28194966,0.00023,2]
[424643543,1781026266000,-333.26194966,0.00018833,2]
[424643544,1781026266000,-166.73805034,0.00018833,2]
[424643542,1781026266000,-636.26,0.00029863,60]
[424643538,1781026266000,-381.02352731,0.00029863,60]
[424643539,1781026266000,-151.0,0.00016438,2]
[424643541,1781026266000,-239.11352731,0.00029863,60]
[424643537,1781026266000,-961.225288,0.00029,7]
[424643528,1781026266000,-616.582569,0.00025,2]
[424643535,1781026266000,-616.582569,0.00029,7]
[424643533,1781026266000,-961.225288,0.00027397,2]
[424643540,1781026266000,-518.97647269,0.00029863,60]
[424643534,1781026266000,-961.225288,0.00027397,2]
[424643531,1781026266000,-1530.699804,0.00026384,2]
[424643532,1781026266000,-961.225288,0.00027397,2]
[424643527,1781026266000,-500.0,0.00023,2]
[424643526,1781026266000,-500.0,0.00023,2]
[424643536,1781026266000,-1530.699804,0.00029,7]
[424643547,1781026267000,-151.0,0.00016438,2]
[424643548,1781026267000,-571.95570936,0.00018833,2]
[424643546,1781026267000,-151.0,0.00016438,2]
[424643549,1781026267000,-1000.0,0.000196,2]
[424643554,1781026267000,-500.0,0.00023,2]
[424643550,1781026267000,-47.71805034,0.00023,2]
[424643551,1781026267000,-500.0,0.00023,2]
[424643553,1781026267000,-500.0,0.00023,2]
[424643552,1781026267000,-500.0,0.00023,2]
[424643559,1781026267000,-1691.1962403,0.00024174,2]
[424643558,1781026267000,-500.0,0.00023,2]
[424643556,1781026267000,-500.0,0.00023,2]
[424643555,1781026267000,-500.0,0.00023,2]
[424643557,1781026267000,-500.0,0.00023,2]
[424643560,1781026267000,-6047.65701897,0.00024174,2]
[424643573,1781026268000,218.0,0.00025333,120]
[424643571,1781026268000,-500.0,0.00019999,2]
[424643569,1781026268000,-500.0,0.00019999,2]
[424643561,1781026268000,-1000.0,0.000141,5]
[424643570,1781026268000,-500.0,0.00019999,2]
[424643568,1781026268000,-500.0,0.00019999,2]
[424643567,1781026268000,-500.0,0.00019999,2]
[424643566,1781026268000,-500.0,0.00019999,2]
[424643565,1781026268000,-2000.0,0.000142,5]
[424643564,1781026268000,-4238.91816064,0.00024174,2]
[424643563,1781026268000,-500.0,0.00023,2]
[424643562,1781026268000,-500.0,0.00023,2]
[424643572,1781026268000,-104.24280001,0.00019999,2]
[424643574,1781026269000,218.0,0.000266,120]
[424643575,1781026269000,218.0,0.00027929,120]
[424643576,1781026270000,218.0,0.00029326,120]
[424643584,1781026510000,236.0,0.00027132,120]
[424643585,1781026511000,236.0,0.00028489,120]
[424643586,1781026513000,236.0,0.00029913,120]
[424643587,1781026532000,163.0,0.0002579,120]
[424643588,1781026534000,163.0,0.00027079,120]
[424643589,1781026535000,163.0,0.00028433,120]
[424643590,1781026538000,163.0,0.00029855,120]
[424643599,1781026633000,150.0,0.00011233,120]
[424643604,1781026687000,730.61,0.00026986,120]
[424643610,1781026800000,246.0049439,0.00025461,120]
[424643611,1781026810000,165.0,0.0002701,120]
[424643612,1781026811000,165.0,0.0002836,120]
[424643613,1781026812000,165.0,0.00029778,120]
[424643614,1781026833000,164.0,0.00025687,120]
[424643615,1781026835000,164.0,0.00026972,120]
[424643616,1781026836000,164.0,0.0002832,120]
[424643617,1781026838000,164.0,0.00029736,120]
[424643628,1781027004000,500.0,0.00029929,120]
[424643629,1781027113000,165.0,0.00026938,120]
[424643630,1781027115000,165.0,0.00028285,120]
[424643631,1781027118000,165.0,0.000297,120]
[424643632,1781027193000,150.0,0.00029929,120]
[424643633,1781027198000,150.0,0.00029929,120]
[424643635,1781027203000,150.0,0.00029929,120]
[424643636,1781027207000,150.0,0.00029929,120]
[424643637,1781027211000,150.0,0.00029929,120]
[424643638,1781027235000,150.0,0.00029929,120]
[424643639,1781027255000,150.0,0.00029929,120]
[424643641,1781027335000,738.01,0.00030082,120]
[424643642,1781027344000,-1200.0,6.7e-05,2]
[424643643,1781027344000,-250.0,6.733e-05,2]
[424643644,1781027344000,-150.0,6.766e-05,2]
[424643645,1781027344000,-460.42252254,6.766e-05,2]
[424643646,1781027344000,-250.0,6.785e-05,2]
[424643647,1781027344000,-1451.62363537,6.8e-05,2]
[424643650,1781027344000,-2527.66979328,6.9e-05,2]
[424643649,1781027344000,-286.0,6.833e-05,2]
[424643651,1781027344000,-1072.33020672,6.9e-05,2]
[424643652,1781027344000,-511.81689287,7e-05,2]
[424643648,1781027344000,-948.37636463,6.8e-05,2]
[424643653,1781027346000,250.0,6.717e-05,2]
[424643659,1781027369000,-1222.0,7.288e-05,2]
[424643657,1781027369000,-3944.21094622,7e-05,2]
[424643658,1781027369000,-343.97216091,7e-05,2]
[424643660,1781027369000,-250.0,7.37e-05,2]
[424643663,1781027369000,-150.11355772,7.47e-05,2]
[424643661,1781027369000,-250.0,7.37e-05,2]
[424643664,1781027369000,-165.4,7.47e-05,2]
[424643665,1781027369000,-23.71683092,7.47e-05,2]
[424643662,1781027369000,-150.0,7.469e-05,2]
[424643671,1781027393000,-201.696127,7.47e-05,2]
[424643670,1781027393000,-1578.47213398,7.47e-05,2]
[424643669,1781027393000,-637.50035489,7.47e-05,2]
[424643668,1781027393000,-940.97177909,7.47e-05,2]
[424643667,1781027393000,-1578.47213398,7.47e-05,2]
[424643666,1781027393000,-1554.75530306,7.47e-05,2]
[424643673,1781027409000,170.0,0.00025949,120]
[424643674,1781027410000,150.0,0.00011233,120]
[424643675,1781027411000,170.0,0.00027246,120]
[424643676,1781027412000,170.0,0.00028609,120]
[424643677,1781027414000,170.0,0.00030039,120]
[424643679,1781027431000,167.0,0.00024721,120]
[424643680,1781027432000,-870.261046,7.37e-05,2]
[424643689,1781027432000,167.0,0.00025957,120]
[424643683,1781027432000,-291.82891571,7.37e-05,2]
[424643682,1781027432000,-2905.30375648,7.37e-05,2]
[424643681,1781027432000,-1060.71257955,7.37e-05,2]
[424643684,1781027432000,-141104.34584002,7.37e-05,2]
[424643690,1781027434000,167.0,0.00027255,120]
[424643691,1781027437000,167.0,0.00028618,120]
[424643736,1781027438000,-334.29866338,7.369e-05,2]
[424643731,1781027438000,-547.26450758,7.369e-05,2]
[424643729,1781027438000,-640.48633239,7.369e-05,2]
[424643727,1781027438000,-241.07683857,7.369e-05,2]
[424643722,1781027438000,-881.56317096,7.369e-05,2]
[424643724,1781027438000,-881.56317096,7.369e-05,2]
[424643696,1781027438000,167.0,0.00030049,120]
[424643805,1781027439000,-881.56317096,7.369e-05,2]
[424643801,1781027439000,-881.56317096,7.369e-05,2]
[424643799,1781027439000,-881.56317096,7.369e-05,2]
[424643811,1781027439000,-881.56317096,7.369e-05,2]
[424643800,1781027439000,-881.56317096,7.369e-05,2]
[424643797,1781027439000,-881.56317096,7.369e-05,2]
[424643796,1781027439000,-881.56317096,7.369e-05,2]
[424643787,1781027439000,-881.56317096,7.369e-05,2]
[424643793,1781027439000,-881.56317096,7.369e-05,2]
[424643802,1781027439000,-881.56317096,7.369e-05,2]
[424643792,1781027439000,-881.56317096,7.369e-05,2]
[424643810,1781027439000,-881.56317096,7.369e-05,2]
[424643821,1781027439000,-11837.935103,7.945e-05,2]
[424643818,1781027439000,-238.36873009,7.47e-05,2]
[424643803,1781027439000,-881.56317096,7.369e-05,2]
[424643808,1781027439000,-881.56317096,7.369e-05,2]
[424643806,1781027439000,-881.56317096,7.369e-05,2]
[424643809,1781027439000,-881.56317096,7.369e-05,2]
[424643807,1781027439000,-881.56317096,7.369e-05,2]
[424643812,1781027439000,-881.56317096,7.369e-05,2]
[424643813,1781027439000,-881.56317096,7.369e-05,2]
[424643816,1781027439000,-6987.301,7.47e-05,2]
[424643814,1781027439000,-2353767.54786224,7.37e-05,2]
[424643815,1781027439000,-202.0,7.443e-05,2]
[424643817,1781027439000,-687.883,7.47e-05,2]
[424643823,1781027439000,-943.8,8.058e-05,2]
[424643822,1781027439000,-160.0,8.016e-05,2]
[424643794,1781027439000,-881.56317096,7.369e-05,2]
[424643804,1781027439000,-881.56317096,7.369e-05,2]
[424643795,1781027439000,-881.56317096,7.369e-05,2]
[424643765,1781027439000,-881.56317096,7.369e-05,2]
[424643790,1781027439000,-881.56317096,7.369e-05,2]
[424643737,1781027439000,-19.59133662,7.369e-05,2]
[424643741,1781027439000,-486.35173836,7.369e-05,2]
[424643742,1781027439000,-395.2114326,7.369e-05,2]
[424643747,1781027439000,-881.56317096,7.369e-05,2]
[424643744,1781027439000,-881.56317096,7.369e-05,2]
[424643757,1781027439000,-881.56317096,7.369e-05,2]
[424643746,1781027439000,-881.56317096,7.369e-05,2]
[424643740,1781027439000,-861.97183434,7.369e-05,2]
[424643750,1781027439000,-881.56317096,7.369e-05,2]
[424643751,1781027439000,-881.56317096,7.369e-05,2]
[424643755,1781027439000,-881.56317096,7.369e-05,2]
[424643753,1781027439000,-881.56317096,7.369e-05,2]
[424643759,1781027439000,-881.56317096,7.369e-05,2]
[424643761,1781027439000,-881.56317096,7.369e-05,2]
[424643763,1781027439000,-881.56317096,7.369e-05,2]
[424643773,1781027439000,-881.56317096,7.369e-05,2]
[424643769,1781027439000,-881.56317096,7.369e-05,2]
[424643767,1781027439000,-881.56317096,7.369e-05,2]
[424643781,1781027439000,-881.56317096,7.369e-05,2]
[424643771,1781027439000,-881.56317096,7.369e-05,2]
[424643775,1781027439000,-881.56317096,7.369e-05,2]
[424643779,1781027439000,-881.56317096,7.369e-05,2]
[424643777,1781027439000,-881.56317096,7.369e-05,2]
[424643785,1781027439000,-881.56317096,7.369e-05,2]
[424643783,1781027439000,-881.56317096,7.369e-05,2]
[424643791,1781027439000,-881.56317096,7.369e-05,2]
[424643788,1781027439000,-881.56317096,7.369e-05,2]
[424643798,1781027439000,-881.56317096,7.369e-05,2]
[424643819,1781027439000,-999.24168519,7.471e-05,2]
[424643859,1781027439000,-166.66,0.00010959,2]
[424643825,1781027439000,-499.99,8.058e-05,2]
[424643854,1781027439000,-1600.0,0.00010298,2]
[424643857,1781027439000,-2000.0,0.00010877,2]
[424643855,1781027439000,-3188.29,0.00010529,2]
[424643856,1781027439000,-3188.29,0.00010779,2]
[424643863,1781027439000,-3188.29,0.0001103,2]
[424643867,1781027439000,-19856.61342647,0.00011099,2]
[424643868,1781027439000,-19856.61342644,0.00011099,2]
[424643862,1781027439000,-150.0,0.00010959,2]
[424643872,1781027439000,-166.66,0.00011178,2]
[424643869,1781027439000,-204.89885758,0.00011099,2]
[424643871,1781027439000,-204.89885751,0.00011099,2]
[424643873,1781027439000,-19856.61342644,0.00011215,2]
[424643870,1781027439000,-204.89885751,0.00011099,2]
[424643864,1781027439000,-166.66,0.00011068,2]
[424643865,1781027439000,-186.2,0.00011099,2]
[424643866,1781027439000,-186.2,0.00011099,2]
[424643875,1781027439000,-166.66,0.00011288,2]
[424643885,1781027439000,-151.0,0.00012,2]
[424643874,1781027439000,-150.0,0.00011233,2]
[424643876,1781027439000,-166.66,0.00011397,2]
[424643878,1781027439000,-1600.0,0.00011442,2]
[424643884,1781027439000,-151.0,0.00012,2]
[424643880,1781027439000,-1894.76,0.00011507,2]
[424643882,1781027439000,-151.0,0.00012,2]
[424643883,1781027439000,-151.0,0.00012,2]
[424643820,1781027439000,-801.74,7.609e-05,2]
[424643881,1781027439000,-2000.0,0.00011964,2]
[424643858,1781027439000,-1252.0,0.00010935,2]
[424643853,1781027439000,-3188.29,0.00010278,2]
[424643879,1781027439000,-166.66,0.00011507,2]
[424643861,1781027439000,-166.19,0.00010959,2]
[424643851,1781027439000,-163.64,0.0001,2]
[424643827,1781027439000,-9999.99,8.058e-05,2]
[424643834,1781027439000,-250.0,8.107e-05,2]
[424643828,1781027439000,-999.99,8.058e-05,2]
[424643826,1781027439000,-5256.1,8.058e-05,2]
[424643824,1781027439000,-150.99,8.058e-05,2]
[424643830,1781027439000,-10968.6,8.058e-05,2]
[424643832,1781027439000,-6069.04,8.058e-05,2]
[424643833,1781027439000,-1972.1,8.058e-05,2]
[424643831,1781027439000,-9999.99,8.058e-05,2]
[424643829,1781027439000,-299.99,8.058e-05,2]
[424643838,1781027439000,-500.0,8.219e-05,2]
[424643841,1781027439000,-200.0,8.225e-05,2]
[424643846,1781027439000,-1600.0,9.154e-05,2]
[424643835,1781027439000,-4796.081527,8.178e-05,2]
[424643848,1781027439000,-2000.0,9.789e-05,2]
[424643852,1781027439000,-3188.29,0.00010027,2]
[424643849,1781027439000,-250.0,9.87e-05,2]
[424643860,1781027439000,-150.0,0.00010959,2]
[424643850,1781027439000,-736.0,9.941e-05,2]
[424643847,1781027439000,-166.19,9.589e-05,2]
[424643842,1781027439000,-150.0,8.493e-05,2]
[424643843,1781027439000,-500.0,8.493e-05,2]
[424643840,1781027439000,-1894.76,8.219e-05,2]
[424643845,1781027439000,-433.0,9.037e-05,2]
[424643836,1781027439000,-4996.94,8.195e-05,2]
[424643837,1781027439000,-255.0,8.216e-05,2]
[424643839,1781027439000,-166.19,8.219e-05,2]
[424643844,1781027439000,-2000.0,8.701e-05,2]
[424643936,1781027440000,-500.0,0.00013698,2]
[424643935,1781027440000,-500.0,0.00013698,2]
[424643925,1781027440000,-500.0,0.00013698,2]
[424643927,1781027440000,-500.0,0.00013698,2]
[424643920,1781027440000,-500.0,0.00013698,2]
[424643923,1781027440000,-500.0,0.00013698,2]
[424643916,1781027440000,-500.0,0.00013698,2]
[424643918,1781027440000,-500.0,0.00013698,2]
[424643917,1781027440000,-500.0,0.00013698,2]
[424643921,1781027440000,-558.08,0.00013698,2]
[424643941,1781027440000,-500.0,0.00013698,2]
[424643922,1781027440000,-500.0,0.00013698,2]
[424643937,1781027440000,-500.0,0.00013698,2]
[424643924,1781027440000,-500.0,0.00013698,2]
[424643931,1781027440000,-379.24222088,0.00013698,2]
[424643929,1781027440000,-500.0,0.00013698,2]
[424643938,1781027440000,-500.0,0.00013698,2]
[424643944,1781027440000,-500.0,0.00013698,2]
[424643945,1781027440000,-500.0,0.00013698,2]
[424643939,1781027440000,-500.0,0.00013698,2]
[424643946,1781027440000,-500.0,0.00013698,2]
[424643940,1781027440000,-500.0,0.00013698,2]
[424643942,1781027440000,-500.0,0.00013698,2]
[424643947,1781027440000,-500.0,0.00013698,2]
[424643919,1781027440000,-500.0,0.00013698,2]
[424643934,1781027440000,-500.0,0.00013698,2]
[424643915,1781027440000,-500.0,0.00013698,2]
[424643910,1781027440000,-500.0,0.00013698,2]
[424643911,1781027440000,-500.0,0.00013698,2]
[424643887,1781027440000,-166.19,0.00012329,2]
[424643886,1781027440000,-2129.0,0.00012032,2]
[424643888,1781027440000,-738.01,0.00012329,2]
[424643892,1781027440000,-2000.0,0.00013052,2]
[424643891,1781027440000,-1500.0,0.00012981,2]
[424643890,1781027440000,-204.89885751,0.00012955,2]
[424643894,1781027440000,-3620.0,0.00013235,2]
[424643896,1781027440000,-500.0,0.00013698,2]
[424643897,1781027440000,-500.0,0.00013698,2]
[424643889,1781027440000,-1600.0,0.00012586,2]
[424643895,1781027440000,-1555.5,0.00013529,2]
[424643893,1781027440000,-19856.61342644,0.00013137,2]
[424643914,1781027440000,-500.0,0.00013698,2]
[424643898,1781027440000,-500.0,0.00013698,2]
[424643899,1781027440000,-500.0,0.00013698,2]
[424643902,1781027440000,-500.0,0.00013698,2]
[424643901,1781027440000,-500.0,0.00013698,2]
[424643903,1781027440000,-500.0,0.00013698,2]
[424643904,1781027440000,-500.0,0.00013698,2]
[424643905,1781027440000,-500.0,0.00013698,2]
[424643909,1781027440000,-500.0,0.00013698,2]
[424643907,1781027440000,-500.0,0.00013698,2]
[424643906,1781027440000,-500.0,0.00013698,2]
[424643908,1781027440000,-511.65470148,0.00013698,2]
[424643912,1781027440000,-500.0,0.00013698,2]
[424643913,1781027440000,-500.0,0.00013698,2]
[424643900,1781027440000,-500.0,0.00013698,2]
[424643943,1781027440000,-500.0,0.00013698,2]
[424643933,1781027440000,-500.0,0.00013698,2]
[424643948,1781027440000,-500.0,0.00013698,2]
[424643974,1781027440000,-500.0,0.00013699,2]
[424643980,1781027440000,-500.0,0.00013699,2]
[424643981,1781027440000,-500.0,0.00013699,2]
[424643977,1781027440000,-500.0,0.00013699,2]
[424643979,1781027440000,-500.0,0.00013699,2]
[424643985,1781027440000,-500.0,0.00013699,2]
[424643988,1781027440000,-500.0,0.00013699,2]
[424643987,1781027440000,-500.0,0.00013699,2]
[424643989,1781027440000,-500.0,0.00013699,2]
[424643990,1781027440000,-500.0,0.00013699,2]
[424643992,1781027440000,-500.0,0.00013699,2]
[424643995,1781027440000,-500.0,0.00013699,2]
[424643975,1781027440000,-246.49857761,0.00013699,2]
[424643993,1781027440000,-500.0,0.00013699,2]
[424643991,1781027440000,-500.0,0.00013699,2]
[424643994,1781027440000,-500.0,0.00013699,2]
[424643996,1781027440000,-500.0,0.00013699,2]
[424643999,1781027440000,-500.0,0.00013699,2]
[424643998,1781027440000,-500.0,0.00013699,2]
[424644005,1781027440000,-650.8,0.000137,2]
[424644004,1781027440000,-500.0,0.00013699,2]
[424644000,1781027440000,-500.0,0.00013699,2]
[424644002,1781027440000,-500.0,0.00013699,2]
[424644001,1781027440000,-500.0,0.00013699,2]
[424644003,1781027440000,-500.0,0.00013699,2]
[424643949,1781027440000,-500.0,0.00013698,2]
[424643986,1781027440000,-500.0,0.00013699,2]
[424643972,1781027440000,-500.0,0.00013699,2]
[424643997,1781027440000,-500.0,0.00013699,2]
[424643984,1781027440000,-500.0,0.00013699,2]
[424643976,1781027440000,-500.0,0.00013699,2]
[424643950,1781027440000,-500.0,0.00013698,2]
[424643955,1781027440000,-500.0,0.00013699,2]
[424643957,1781027440000,-500.0,0.00013699,2]
[424643952,1781027440000,-200.0,0.00013699,2]
[424643953,1781027440000,-2025.15,0.00013699,2]
[424643951,1781027440000,-604.26544434,0.00013698,2]
[424643956,1781027440000,-500.0,0.00013699,2]
[424643954,1781027440000,-500.0,0.00013699,2]
[424643959,1781027440000,-500.0,0.00013699,2]
[424643960,1781027440000,-500.0,0.00013699,2]
[424643961,1781027440000,-500.0,0.00013699,2]
[424643964,1781027440000,-500.0,0.00013699,2]
[424643958,1781027440000,-500.0,0.00013699,2]
[424643983,1781027440000,-500.0,0.00013699,2]